bitfinex/quotes_BTCUSD_20250829
["timestamp","ask_amount","ask_price","bid_price","bid_amount"]
[1756454800414,0.18961067,110390.0,110380.0,0.41969185]
[1756454800609,0.01041484,110390.0,110380.0,0.42186185]
[1756454800811,0.00843484,110390.0,110380.0,0.48307346]
[1756454801050,0.01689182,110390.0,110380.0,0.42186185]
[1756454801262,0.00844591,110390.0,110380.0,0.42186185]
[1756454801456,0.00853239,110390.0,110380.0,0.42386185]
[1756454802279,0.00852655,110390.0,110380.0,0.42386185]
[1756454802427,8.648e-05,110390.0,110380.0,0.42386185]
[1756454803112,8.648e-05,110390.0,110380.0,0.48527346]
[1756454803306,8.648e-05,110390.0,110380.0,0.48827346]
[1756454803513,8.648e-05,110390.0,110380.0,0.42686185]
[1756454805237,0.18126231,110390.0,110380.0,0.42686185]
[1756454805394,1.20943559,110390.0,110380.0,0.23761]
[1756454805595,1.20943559,110390.0,110380.0,0.41343224]
[1756454805779,1.21786833,110390.0,110380.0,0.34375224]
[1756454805979,1.21286833,110390.0,110380.0,0.34375224]
[1756454806334,1.20443559,110390.0,110380.0,0.34375224]
[1756454806537,1.20443559,110390.0,110380.0,0.34612224]
[1756454806991,1.20245559,110390.0,110380.0,0.34612224]
[1756454807197,1.20245559,110390.0,110380.0,0.34812224]
[1756454807420,1.20736911,110390.0,110380.0,0.34612224]
[1756454807623,0.18117583,110390.0,110380.0,0.34712224]
[1756454808202,1.20736911,110390.0,110380.0,0.34712224]
[1756454808363,0.18117583,110390.0,110380.0,0.34712224]
[1756454808544,1.20736911,110390.0,110380.0,0.34712224]
[1756454809377,1.20934911,110390.0,110380.0,0.34712224]
[1756454810216,1.20934911,110390.0,110380.0,0.40085989]
[1756454810380,0.18117583,110390.0,110380.0,0.34712224]
[1756454810980,1.20735596,110400.0,110380.0,0.34712224]
[1756454811184,0.34842581,110400.0,110390.0,0.18645052]
[1756454811391,1.55642214,110410.0,110400.0,0.18115942]
[1756454811610,1.24170074,110410.0,110400.0,0.34381942]
[1756454811785,0.0084262,110410.0,110400.0,0.34381942]
[1756454811996,1.20732154,110420.0,110400.0,0.34381942]
[1756454812199,0.02528442,110420.0,110410.0,0.18415301]
[1756454812408,0.20641102,110420.0,110410.0,0.18628301]
[1756454812616,0.18955487,110420.0,110410.0,0.18628301]
[1756454813024,1.21574815,110420.0,110410.0,0.18628301]
[1756454813243,1.21774815,110420.0,110410.0,0.18628301]
[1756454813450,1.03462155,110420.0,110410.0,0.18628301]
[1756454813649,1.21574815,110420.0,110410.0,0.18628301]
[1756454813853,1.21674815,110420.0,110410.0,0.18628301]
[1756454814548,0.08260567,110460.0,110410.0,0.18628301]
[1756454814737,1.02619328,110430.0,110420.0,0.20752]
[1756454814956,1.47628049,110430.0,110420.0,0.05]
[1756454815312,0.1811266,110420.0,110410.0,0.73163297]
[1756454815514,0.19798898,110420.0,110410.0,0.55049]
[1756454815720,0.19798898,110420.0,110410.0,0.73163301]
[1756454815926,0.19798898,110420.0,110410.0,0.39163301]
[1756454816606,0.19898898,110420.0,110410.0,0.39163301]
[1756454817812,0.01786238,110420.0,110410.0,0.39163301]
[1756454818010,0.01786238,110420.0,110410.0,0.39376301]
[1756454818814,0.001,110420.0,110410.0,0.39376301]
[1756454819026,0.001,110420.0,110410.0,0.79042547]
[1756454819241,0.001,110420.0,110410.0,0.92872179]
[1756454819866,0.001,110420.0,110410.0,1.01701811]
[1756454821260,0.001,110420.0,110410.0,1.01801811]
[1756454821701,0.001,110420.0,110410.0,1.10763693]
[1756454821920,0.00014326,110440.0,110430.0,0.2311102]
[1756454822149,0.00014326,110440.0,110430.0,0.84539123]
[1756454822366,0.00014326,110440.0,110430.0,0.85053123]
[1756454823243,0.00014326,110440.0,110430.0,0.85153123]
[1756454823705,0.00014326,110440.0,110430.0,0.93982755]
[1756454824356,0.00014326,110440.0,110430.0,1.73315247]
[1756454830970,0.14868429,110470.0,110460.0,0.39666246]
[1756454831294,0.26271505,110470.0,110460.0,0.55402246]
[1756454831701,0.26271505,110470.0,110460.0,0.60402246]
[1756454832116,0.23945805,110470.0,110460.0,0.60402246]
[1756454832330,0.2647119,110470.0,110460.0,0.60402246]
[1756454832532,0.2647119,110470.0,110460.0,0.55402246]
[1756454832739,0.2647119,110470.0,110460.0,0.60402246]
[1756454832940,0.2667119,110470.0,110460.0,0.60402246]
[1756454833336,0.2667119,110470.0,110460.0,0.39666246]
[1756454834089,0.27302473,110470.0,110460.0,0.39666246]
[1756454834882,0.18106101,110460.0,110450.0,0.39144741]
[1756454835079,0.20631486,110460.0,110450.0,0.39357741]
[1756454835675,0.18947896,110460.0,110450.0,0.39357741]
[1756454836073,0.20634181,110460.0,110450.0,0.79023987]
[1756454836676,0.0272808,110460.0,110450.0,0.79023987]
[1756454836896,0.20834181,110460.0,110450.0,0.79023987]
[1756454837140,0.20934181,110460.0,110450.0,0.79023987]
[1756454837345,0.21914958,110460.0,110450.0,0.60402246]
[1756454837880,0.21914958,110460.0,110450.0,0.78509987]
[1756454838500,0.21914958,110460.0,110450.0,0.60710246]
[1756454839162,0.21914958,110460.0,110450.0,0.78817987]
[1756454840013,0.18107741,110450.0,110440.0,0.05]
[1756454840254,0.29465453,110450.0,110440.0,0.20728]
[1756454840561,0.29465453,110450.0,110440.0,0.60394246]
[1756454841131,0.29465453,110450.0,110440.0,0.20728]
[1756454841337,0.30099269,110450.0,110440.0,0.44666246]
[1756454841557,0.30099269,110450.0,110440.0,0.60390246]
[1756454842359,0.29257474,110450.0,110440.0,0.60390246]
[1756454842560,0.3010725,110450.0,110440.0,0.60390246]
[1756454843209,0.30107164,110450.0,110440.0,0.86688537]
[1756454843620,0.30107164,110450.0,110440.0,0.68579157]
[1756454843738,0.30107164,110450.0,110440.0,0.60698246]
[1756454845956,0.29261948,110450.0,110440.0,0.60698246]
[1756454846189,0.30107706,110450.0,110440.0,0.60908246]
[1756454846642,0.30107706,110450.0,110440.0,0.79017626]
[1756454846834,0.30107706,110450.0,110440.0,0.60908246]
[1756454846959,0.30107706,110450.0,110440.0,0.79017626]
[1756454847367,0.30107706,110450.0,110440.0,0.60908246]
[1756454847773,0.30107706,110450.0,110440.0,0.21242]
[1756454847978,0.30107706,110450.0,110440.0,0.60698246]
[1756454848196,0.30108741,110450.0,110440.0,0.60698246]
[1756454848607,0.36977032,110450.0,110440.0,0.55390246]
[1756454848810,0.47785017,110450.0,110440.0,0.60390246]
[1756454849409,0.47785017,110450.0,110440.0,0.20724]
[1756454849605,0.47785017,110450.0,110440.0,0.60390246]
[1756454850625,0.32065017,110450.0,110440.0,0.60390246]
[1756454850989,0.32065017,110450.0,110440.0,0.20724]
[1756454851210,0.3205847,110450.0,110440.0,0.60390246]
[1756454851607,0.3205847,110450.0,110440.0,0.60698246]
[1756454851830,0.3205847,110450.0,110420.0,0.12063082]
[1756454852028,0.3205847,110450.0,110410.0,0.00308]
[1756454852029,0.1811102,110430.0,110410.0,0.00308]
[1756454852246,0.18114301,110410.0,110400.0,0.68090188]
[1756454852400,0.21285669,110410.0,110400.0,0.65904246]
[1756454852772,0.18748272,110410.0,110400.0,0.60904246]
[1756454853003,0.21287976,110410.0,110400.0,0.65904246]
[1756454853404,0.21287976,110410.0,110400.0,0.65918572]
[1756454853607,0.21287976,110410.0,110400.0,0.55918572]
[1756454854077,0.21287976,110410.0,110400.0,0.61018572]
[1756454854639,0.21287976,110410.0,110400.0,0.16142326]
[1756454854851,0.21287976,110410.0,110400.0,0.60500572]
[1756454855023,0.21287976,110410.0,110400.0,0.20834326]
[1756454855222,0.21287976,110410.0,110400.0,0.21142326]
[1756454855432,0.21287976,110410.0,110400.0,0.21352326]
[1756454856529,0.21287976,110410.0,110400.0,0.16352326]
[1756454856955,0.30117608,110410.0,110400.0,0.16142326]
[1756454857176,0.30117608,110410.0,110400.0,0.21142326]
[1756454857698,0.30117608,110410.0,110400.0,0.21352326]
[1756454858217,0.30117608,110410.0,110400.0,0.61018572]
[1756454858429,0.30117608,110410.0,110400.0,0.21352326]
[1756454858804,0.30117608,110410.0,110400.0,0.61018572]
[1756454859351,0.30117608,110410.0,110400.0,0.21352326]
[1756454859476,0.36512235,110410.0,110400.0,0.00422326]
[1756454859701,0.36512235,110410.0,110400.0,0.16138326]
[1756454859928,0.30113987,110410.0,110400.0,0.21138326]
[1756454860372,0.30106714,110410.0,110400.0,0.21138326]
[1756454860650,0.64106714,110410.0,110400.0,0.15830326]
[1756454860800,0.64106714,110410.0,110400.0,0.00114326]
[1756454860990,0.64106714,110410.0,110400.0,0.05114326]
[1756454861191,0.72936346,110410.0,110400.0,0.05114326]
[1756454861637,0.72936346,110410.0,110400.0,0.00114326]
[1756454861821,0.72936346,110410.0,110400.0,0.00014326]
[1756454863251,0.72931188,110410.0,110400.0,0.00014326]
[1756454863870,0.64101556,110410.0,110400.0,0.00014326]
[1756454864269,1.03767802,110410.0,110400.0,0.00014326]
[1756454867177,0.64101556,110410.0,110400.0,0.00014326]
[1756454867403,1.03767802,110410.0,110400.0,0.00014326]
[1756454867896,0.64101556,110410.0,110400.0,0.00014326]
[1756454868102,1.03767802,110410.0,110400.0,0.00014326]
[1756454868447,1.12597434,110410.0,110400.0,0.00014326]
[1756454871106,0.85653501,110410.0,110400.0,0.00014326]
[1756454871313,1.03767802,110410.0,110400.0,0.00014326]
[1756454871939,1.0571598,110410.0,110400.0,0.00014326]
[1756454872351,6.0571598,110410.0,110400.0,0.00014326]
[1756454873627,6.05717604,110410.0,110400.0,0.00014326]
[1756454873803,6.14647236,110410.0,110400.0,0.00014326]
[1756454874006,6.14647255,110410.0,110400.0,0.00014326]
[1756454874201,6.00915817,110410.0,110400.0,0.00014326]
[1756454874409,6.00715817,110410.0,110400.0,0.00014326]
[1756454874774,6.00915817,110410.0,110400.0,0.00014326]
[1756454874975,6.02334371,110410.0,110400.0,0.00014326]
[1756454875197,6.02434371,110410.0,110400.0,0.00014326]
[1756454875602,6.18142371,110410.0,110400.0,0.00014326]
[1756454880322,6.18145858,110410.0,110400.0,0.00014326]
[1756454881193,6.20581764,110410.0,110400.0,0.00014326]
[1756454882565,6.19948418,110410.0,110400.0,0.00014326]
[1756454882761,6.20589221,110410.0,110400.0,0.00014326]
[1756454883587,6.19170845,110410.0,110400.0,0.00014326]
[1756454884212,0.18115942,110400.0,110390.0,0.00314]
[1756454884418,0.31527792,110400.0,110390.0,0.18431583]
[1756454884617,0.04793566,110400.0,110390.0,0.92826461]
[1756454884816,0.02520388,110400.0,110390.0,1.01656093]
[1756454885223,0.01479512,110400.0,110390.0,0.61989847]
[1756454885425,0.01479512,110400.0,110390.0,1.01656093]
[1756454885622,0.01479512,110400.0,110390.0,0.61989847]
[1756454885846,0.01479512,110400.0,110390.0,1.01656093]
[1756454886897,0.01479512,110400.0,110390.0,0.61989847]
[1756454887475,0.01479512,110400.0,110390.0,1.02456093]
[1756454887711,0.01479512,110400.0,110390.0,1.01956093]
[1756454887925,0.01479512,110400.0,110390.0,0.62289847]
[1756454888541,0.01479512,110400.0,110390.0,0.46585847]
[1756454888753,0.01479512,110400.0,110390.0,0.84292829]
[1756454888959,0.01479512,110400.0,110390.0,0.44626583]
[1756454889151,0.01479512,110400.0,110390.0,0.44826583]
[1756454889355,0.01479512,110400.0,110390.0,0.44526583]
[1756454889553,0.01479512,110400.0,110390.0,0.44326583]
[1756454889761,0.01479512,110400.0,110390.0,0.44826583]
[1756454890085,0.01479512,110400.0,110390.0,0.84492829]
[1756454890285,0.00845434,110400.0,110390.0,0.84492829]
[1756454890443,0.00845434,110400.0,110390.0,0.44826583]
[1756454891010,0.00845434,110400.0,110390.0,0.29126583]
[1756454891199,0.00845434,110400.0,110390.0,0.84488829]
[1756454891607,0.18114365,110410.0,110400.0,0.23114852]
[1756454891808,0.59008369,110420.0,110400.0,0.23428852]
[1756454892011,0.59008369,110420.0,110410.0,0.18114301]
[1756454892290,0.59221369,110420.0,110410.0,0.23114301]
[1756454892775,0.59221369,110420.0,110410.0,0.05]
[1756454893213,0.59221369,110420.0,110410.0,0.23114301]
[1756454893355,0.59221369,110420.0,110410.0,0.23409301]
[1756454893559,0.59221369,110420.0,110410.0,0.051]
[1756454893763,0.7577061,110420.0,110410.0,0.001]
[1756454893964,0.7577061,110420.0,110410.0,0.051]
[1756454894446,0.76615615,110420.0,110410.0,0.051]
[1756454894823,0.7577061,110420.0,110410.0,0.051]
[1756454895026,0.7577061,110420.0,110410.0,0.001]
[1756454895355,1.0977061,110420.0,110410.0,0.001]
[1756454895778,6.93668688,110420.0,110410.0,0.001]
[1756454896001,0.18120866,110370.0,110360.0,0.08878]
[1756454896211,0.18120866,110370.0,110360.0,0.00195]
[1756454896212,0.58000112,110370.0,110360.0,0.00195]
[1756454896428,0.1812415,110350.0,110340.0,0.07063082]
[1756454896639,0.18125793,110340.0,110330.0,0.0502]
[1756454896847,0.64419235,110340.0,110330.0,0.0502]
[1756454897018,0.64419235,110340.0,110330.0,0.0002]
[1756454897221,0.64419235,110340.0,110330.0,0.0502]
[1756454897421,0.64419235,110340.0,110330.0,0.05034325]
[1756454897655,0.70757501,110340.0,110330.0,0.00034325]
[1756454898054,0.72709288,110340.0,110330.0,0.00034325]
[1756454898443,0.70757501,110340.0,110330.0,0.00034325]
[1756454899474,0.73924391,110340.0,110330.0,0.00034325]
[1756454899692,0.73924333,110340.0,110330.0,0.00034325]
[1756454899871,0.74024333,110340.0,110330.0,0.00034325]
[1756454900100,0.74224333,110340.0,110330.0,0.00034325]
[1756454900522,0.34558087,110340.0,110330.0,0.00034325]
[1756454900779,0.71901972,110340.0,110330.0,0.00034325]
[1756454900982,0.74215456,110340.0,110330.0,0.00034325]
[1756454901431,0.74214905,110340.0,110330.0,0.00034325]
[1756454902891,0.34548659,110340.0,110330.0,0.00034325]
[1756454903092,0.74214905,110340.0,110330.0,0.00034325]
[1756454903894,0.34548659,110340.0,110330.0,0.00034325]
[1756454904126,0.74214905,110340.0,110330.0,0.00034325]
[1756454904801,0.34548659,110340.0,110330.0,0.00034325]
[1756454904982,0.67344639,110340.0,110330.0,0.1836276]
[1756454905186,0.67344639,110340.0,110330.0,0.1868076]
[1756454905187,0.03457404,110340.0,110330.0,0.1868076]
[1756454905386,0.02826364,110340.0,110330.0,0.3937676]
[1756454905889,0.6124809,110340.0,110330.0,0.2368076]
[1756454906096,0.60105969,110340.0,110330.0,0.05553325]
[1756454906303,0.91117179,110340.0,110330.0,0.00034325]
[1756454906508,0.91117179,110340.0,110330.0,0.05034325]
[1756454907042,0.91117179,110340.0,110330.0,0.00334325]
[1756454907245,0.91117179,110340.0,110330.0,0.05434325]
[1756454907444,0.83261762,110340.0,110330.0,0.05134325]
[1756454907799,0.82736762,110340.0,110330.0,0.2368076]
[1756454908005,0.0231393,110340.0,110330.0,0.2368076]
[1756454908182,0.03153341,110340.0,110330.0,0.3937676]
[1756454908387,0.20439723,110340.0,110330.0,0.3937676]
[1756454908555,0.60105969,110340.0,110330.0,0.3937676]
[1756454909177,0.6094528,110340.0,110330.0,0.2368076]
[1756454909384,0.20439723,110340.0,110330.0,0.2398076]
[1756454909612,0.60105969,110340.0,110330.0,0.2398076]
[1756454910138,0.60105969,110340.0,110330.0,0.2408076]
[1756454910281,0.60105969,110340.0,110330.0,0.2378076]
[1756454910486,0.60105969,110340.0,110330.0,0.2368076]
[1756454910688,0.69136601,110340.0,110330.0,0.05134325]
[1756454911021,0.75555797,110340.0,110330.0,0.00134325]
[1756454911221,0.77496363,110340.0,110330.0,0.00134325]
[1756454911463,0.78329813,110340.0,110330.0,0.00134325]
[1756454911601,0.76389247,110340.0,110330.0,0.00134325]
[1756454911787,0.27569369,110340.0,110330.0,0.1846276]
[1756454911989,0.09242576,110340.0,110330.0,0.1878076]
[1756454912236,0.02308079,110340.0,110330.0,0.4438076]
[1756454912631,0.01678603,110340.0,110330.0,0.4438076]
[1756454912836,0.01678603,110340.0,110330.0,0.53210392]
[1756454913384,0.01678603,110340.0,110330.0,0.53310392]
[1756454913645,0.01678603,110340.0,110330.0,0.53210392]
[1756454914045,0.01678603,110340.0,110330.0,0.84347006]
[1756454914249,0.01678603,110340.0,110330.0,0.4468076]
[1756454916509,0.01678603,110340.0,110330.0,0.4478076]
[1756454917300,0.03151721,110340.0,110330.0,0.4478076]
[1756454917542,0.01678603,110340.0,110330.0,0.4478076]
[1756454918325,0.03153512,110340.0,110330.0,0.4478076]
[1756454919120,0.03153617,110340.0,110330.0,0.4478076]
[1756454919281,0.03153617,110340.0,110330.0,0.53610392]
[1756454921611,0.01475014,110340.0,110330.0,0.53610392]
[1756454921836,0.03175001,110340.0,110330.0,0.53610392]
[1756454922013,0.03175001,110340.0,110330.0,0.93276638]
[1756454922216,0.03175001,110340.0,110330.0,1.0210627]
[1756454923051,0.03175001,110340.0,110330.0,1.04200152]
[1756454923251,0.02540001,110340.0,110330.0,1.38200152]
[1756454923858,0.02540001,110340.0,110330.0,0.98533906]
[1756454924079,0.02540001,110340.0,110330.0,1.38200152]
[1756454924256,0.01693334,110340.0,110330.0,1.38200152]
[1756454924522,0.01693334,110340.0,110330.0,1.22500152]
[1756454924854,0.02539378,110340.0,110330.0,0.61910392]
[1756454925056,0.03173887,110340.0,110330.0,0.82606392]
[1756454925278,0.03173887,110340.0,110330.0,0.66910392]
[1756454925481,0.03374887,110340.0,110330.0,0.4477676]
[1756454925682,0.03374887,110340.0,110330.0,0.4445876]
[1756454925891,0.05652777,110340.0,110330.0,0.4445876]
[1756454926325,0.69789139,110340.0,110330.0,0.05434325]
[1756454926528,0.75884335,110340.0,110330.0,0.05434325]
[1756454926735,0.78325802,110340.0,110330.0,0.00434325]
[1756454926881,0.79139624,110340.0,110330.0,0.00434325]
[1756454927273,1.14748563,110340.0,110330.0,0.00034325]
[1756454927721,6.14748563,110340.0,110330.0,0.00034325]
[1756454928346,5.75082317,110340.0,110330.0,0.00034325]
[1756454928511,6.14748563,110340.0,110330.0,0.00034325]
[1756454929358,6.14930904,110340.0,110330.0,0.00034325]
[1756454929762,6.15130904,110340.0,110330.0,0.00034325]
[1756454929935,6.16754525,110340.0,110330.0,0.00034325]
[1756454930139,6.16654525,110340.0,110330.0,0.00034325]
[1756454930363,0.9350293,110310.0,110300.0,0.00024]
[1756454930713,1.16936123,110310.0,110300.0,0.00071767]
[1756454930955,1.17440123,110310.0,110300.0,0.00071767]
[1756454931435,1.17440848,110310.0,110300.0,0.00071767]
[1756454932117,1.17434838,110310.0,110300.0,0.00071767]
[1756454932323,1.17434838,110310.0,110300.0,0.00271767]
[1756454932662,1.17434838,110310.0,110300.0,0.00571767]
[1756454932882,1.17434838,110310.0,110300.0,0.00371767]
[1756454933068,0.7606263,110310.0,110300.0,0.00171767]
[1756454933317,1.17434838,110310.0,110300.0,0.00171767]
[1756454933731,1.22320847,110310.0,110300.0,0.00171767]
[1756454933935,6.19063508,110310.0,110300.0,0.00171767]
[1756454934344,6.14177499,110310.0,110300.0,0.00171767]
[1756454935025,6.14177499,110310.0,110300.0,0.00071767]
[1756454935533,6.14277499,110310.0,110300.0,0.00071767]
[1756454935870,6.14377499,110310.0,110300.0,0.00071767]
[1756454937374,6.19247415,110310.0,110300.0,0.00071767]
[1756454939390,1.29050017,110310.0,110300.0,0.00274767]
[1756454939756,1.24180101,110310.0,110300.0,0.00274767]
[1756454939961,0.82807893,110310.0,110300.0,0.00274767]
[1756454940191,0.61236937,110310.0,110300.0,0.18702133]
[1756454940372,0.80521422,110310.0,110300.0,0.18702133]
[1756454940567,0.84353099,110310.0,110300.0,0.18702133]
[1756454940771,0.82663564,110310.0,110300.0,0.00569767]
[1756454941396,0.82658644,110310.0,110300.0,0.00569767]
[1756454941593,0.82854644,110310.0,110300.0,0.18702133]
[1756454942151,0.82658644,110310.0,110300.0,0.18702133]
[1756454942558,0.37454759,110310.0,110300.0,0.18702133]
[1756454942754,0.03628037,110310.0,110300.0,0.18702133]
[1756454943037,0.02996624,110310.0,110300.0,0.23702133]
[1756454943236,0.21127346,110310.0,110300.0,0.23702133]
[1756454943467,0.02996624,110310.0,110300.0,0.23702133]
[1756454943657,0.21127346,110310.0,110300.0,0.23702133]
[1756454944026,0.02996624,110310.0,110300.0,0.23702133]
[1756454944220,0.44368832,110310.0,110300.0,0.23702133]
[1756454944657,0.44368541,110310.0,110300.0,0.23702133]
[1756454944861,0.02996333,110310.0,110300.0,0.28702133]
[1756454945111,0.01041718,110310.0,110300.0,0.28702133]
[1756454945283,0.01041718,110310.0,110300.0,0.44398133]
[1756454945443,0.00657338,110310.0,110300.0,0.44398133]
[1756454945644,0.75197532,110320.0,110310.0,0.05]
[1756454945848,0.77339227,110320.0,110310.0,0.05203]
[1756454946049,0.86476859,110320.0,110310.0,0.05]
[1756454946250,0.93285629,110320.0,110310.0,0.05]
[1756454946428,0.18130722,110310.0,110300.0,0.05071767]
[1756454946632,1.02802409,110310.0,110300.0,0.00071767]
[1756454946856,1.05235493,110310.0,110300.0,0.00071767]
[1756454947058,6.06702945,110310.0,110300.0,0.00071767]
[1756454947899,1.08479727,110310.0,110300.0,0.00274767]
[1756454948101,1.04927493,110310.0,110300.0,0.00274767]
[1756454948312,1.02494409,110310.0,110300.0,0.00569767]
[1756454948472,1.02494409,110310.0,110300.0,0.00274767]
[1756454950329,1.02802409,110310.0,110300.0,0.00071767]
[1756454950531,1.11632041,110310.0,110300.0,0.00071767]
[1756454950819,1.14065125,110310.0,110300.0,0.00071767]
[1756454951047,1.11632041,110310.0,110300.0,0.00071767]
[1756454951623,1.11632588,110310.0,110300.0,0.00071767]
[1756454954456,1.14065672,110310.0,110300.0,0.00071767]
[1756454954657,0.72693464,110310.0,110300.0,0.00071767]
[1756454954867,1.14065672,110310.0,110300.0,0.00071767]
[1756454956385,1.17309906,110310.0,110300.0,0.00071767]
[1756454956786,1.14065672,110310.0,110300.0,0.00071767]
[1756454957377,1.17309906,110310.0,110300.0,0.00071767]
[1756454957575,1.18156564,110310.0,110300.0,0.00071767]
[1756454959665,1.17309906,110310.0,110300.0,0.00071767]
[1756454959874,1.18160461,110310.0,110300.0,0.00071767]
[1756454960368,1.15727377,110310.0,110300.0,0.00071767]
[1756454960936,6.15727377,110310.0,110300.0,0.00071767]
[1756454961146,0.52132366,110300.0,110290.0,0.0002]
[1756454961315,6.22803589,110300.0,110290.0,0.0002]
[1756454961519,1.26568823,110300.0,110290.0,0.0002]
[1756454961719,1.26569065,110300.0,110290.0,0.0002]
[1756454961958,1.26569246,110300.0,110290.0,0.0002]
[1756454962290,1.28263948,110300.0,110290.0,0.0002]
[1756454962502,1.28263948,110300.0,110290.0,0.0012]
[1756454963142,0.8689174,110300.0,110290.0,0.0012]
[1756454963348,0.8689174,110300.0,110290.0,0.0022]
[1756454963761,6.35269175,110300.0,110290.0,0.0022]
[1756454963933,6.35269175,110300.0,110280.0,0.0002]
[1756454963934,0.20227892,110290.0,110280.0,0.0002]
[1756454964139,5.99960222,110290.0,110280.0,0.0002]
[1756454964412,6.00481222,110290.0,110280.0,0.0002]
[1756454965928,6.00581222,110290.0,110280.0,0.0002]
[1756454966518,6.34781222,110290.0,110280.0,0.0002]
[1756454966719,6.29885332,110290.0,110280.0,0.0002]
[1756454968002,6.05612424,110290.0,110280.0,0.0002]
[1756454968241,6.27005898,110290.0,110280.0,0.0002]
[1756454971219,6.35690364,110290.0,110280.0,1e-08]
[1756454972283,6.35684378,110290.0,110280.0,1e-08]
[1756454972492,6.29949822,110290.0,110280.0,1e-08]
[1756454973769,6.31369969,110290.0,110280.0,1e-08]
[1756454974416,0.54231181,110270.0,110260.0,1e-08]
[1756454974618,6.37251726,110270.0,110260.0,1e-08]
[1756454974825,6.40262039,110270.0,110260.0,1e-08]
[1756454975035,6.42733577,110270.0,110260.0,1e-08]
[1756454975236,6.39273161,110270.0,110260.0,1e-08]
[1756454975436,7.07138962,110270.0,110260.0,1e-08]
[1756454975664,0.5214388,110230.0,110220.0,0.07063082]
[1756454975873,6.25672283,110230.0,110220.0,0.07063082]
[1756454976079,6.25875283,110230.0,110220.0,0.07262082]
[1756454976830,6.26718253,110230.0,110220.0,0.07262082]
[1756454977110,6.26718253,110230.0,110220.0,0.0727073]
[1756454977308,6.26718253,110230.0,110220.0,0.0737073]
[1756454977675,6.27036253,110230.0,110220.0,0.00108648]
[1756454978076,6.2784949,110230.0,110220.0,0.00108648]
[1756454978476,6.32728914,110230.0,110220.0,0.00108648]
[1756454978685,6.32728914,110230.0,110220.0,0.00208648]
[1756454979313,6.32728914,110230.0,110220.0,0.00108648]
[1756454979314,6.32721297,110230.0,110220.0,0.00108648]
[1756454980062,6.32721297,110230.0,110220.0,8.648e-05]
[1756454980275,6.33352542,110230.0,110220.0,8.648e-05]
[1756454980888,6.77632542,110230.0,110220.0,8.648e-05]
[1756454981091,6.77632542,110230.0,110220.0,0.00208648]
[1756454981243,6.72753118,110230.0,110220.0,0.00208648]
[1756454981426,6.77632542,110230.0,110220.0,8.648e-05]
[1756454981837,6.77632542,110230.0,110220.0,0.00208648]
[1756454982363,6.72753118,110230.0,110220.0,0.00208648]
[1756454982543,6.71279853,110230.0,110220.0,0.00208648]
[1756454982747,6.72749135,110230.0,110220.0,0.00208648]
[1756454983402,6.7518137,110230.0,110220.0,0.00208648]
[1756454983772,6.5652414,110230.0,110220.0,0.00407648]
[1756454983992,5.81769979,110230.0,110220.0,0.00731648]
[1756454984198,0.89298741,110230.0,110220.0,0.00731648]
[1756454984409,0.86235881,110230.0,110220.0,0.00731648]
[1756454984635,1.20235881,110230.0,110220.0,0.00731648]
[1756454984844,1.21387666,110230.0,110220.0,0.00208648]
[1756454985022,1.32649492,110230.0,110220.0,0.00208648]
[1756454985665,6.32649492,110230.0,110220.0,0.00208648]
[1756454986080,6.32331492,110230.0,110220.0,0.00407648]
[1756454986926,1.32331492,110230.0,110220.0,0.00407648]
[1756454987127,1.32331492,110230.0,110220.0,0.00731648]
[1756454987316,1.32128492,110230.0,110220.0,0.00731648]
[1756454988933,1.32003911,110230.0,110220.0,0.00731648]
[1756454989294,1.32003911,110230.0,110220.0,0.18877175]
[1756454989295,0.66098071,110230.0,110220.0,0.18877175]
[1756454989427,1.20766085,110230.0,110220.0,0.18877175]
[1756454989637,0.68116001,110230.0,110220.0,0.23877175]
[1756454989996,1.02116001,110230.0,110220.0,0.23877175]
[1756454990231,0.04468357,110230.0,110220.0,0.28877175]
[1756454991041,0.02522662,110230.0,110220.0,0.28877175]
[1756454991242,0.6203875,110230.0,110220.0,0.28877175]
[1756454991359,0.22616074,110230.0,110220.0,0.28877175]
[1756454991569,0.63988282,110230.0,110220.0,0.28877175]
[1756454992049,0.63988282,110230.0,110220.0,0.23877175]
[1756454992240,0.86255718,110230.0,110220.0,0.05731648]
[1756454992752,0.86888459,110230.0,110220.0,0.05731648]
[1756454993051,0.68111838,110230.0,110220.0,0.23877175]
[1756454993278,0.68120169,110230.0,110220.0,0.23877175]
[1756454993472,0.68814762,110230.0,110220.0,0.23877175]
[1756454993600,0.86960192,110230.0,110220.0,0.23877175]
[1756454994010,0.85339891,110230.0,110220.0,0.23877175]
[1756454994594,0.67196011,110230.0,110220.0,0.23877175]
[1756454994981,0.27382646,110230.0,110220.0,0.23877175]
[1756454995478,0.67196011,110230.0,110220.0,0.23877175]
[1756454995622,0.45526526,110230.0,110220.0,0.23877175]
[1756454995825,0.85339891,110230.0,110220.0,0.23877175]
[1756454996455,0.85339891,110230.0,110220.0,0.05731648]
[1756454996668,0.87772085,110230.0,110220.0,0.05731648]
[1756454997028,0.85339891,110230.0,110220.0,0.05731648]
[1756454997234,0.96601717,110230.0,110220.0,0.05731648]
[1756454997500,0.87772085,110230.0,110220.0,0.23877175]
[1756454997684,0.85339891,110230.0,110220.0,0.23877175]
[1756454997905,0.2981484,110230.0,110220.0,0.23877175]
[1756454998031,0.67196011,110230.0,110220.0,0.23877175]
[1756454998414,0.51476011,110230.0,110220.0,0.23877175]
[1756454998607,0.69619891,110230.0,110220.0,0.23877175]
[1756454998814,0.87756085,110230.0,110220.0,0.23877175]
[1756454999315,0.96585717,110230.0,110220.0,0.05731648]
[1756454999517,1.00035666,110230.0,110220.0,0.05407648]
[1756454999734,0.97603472,110230.0,110220.0,0.00407648]
[1756454999933,0.97603472,110230.0,110220.0,0.00208648]
[1756454999934,1.31915472,110230.0,110220.0,0.00208648]
[1756455000158,1.36794896,110230.0,110220.0,0.00208648]
[1756455000356,1.33541947,110230.0,110220.0,0.00208648]
[1756455001066,6.33541947,110230.0,110220.0,0.00208648]
[1756455001268,6.35156116,110230.0,110220.0,0.00208648]
[1756455001441,6.28662523,110230.0,110220.0,0.00208648]
[1756455001812,6.35156116,110230.0,110220.0,0.00208648]
[1756455002473,6.35163441,110230.0,110220.0,0.00208648]
[1756455003235,0.52145527,110220.0,110210.0,0.0002]
[1756455003465,0.18147173,110210.0,110200.0,0.00907441]
[1756455003663,0.85416832,110210.0,110200.0,0.19061012]
[1756455004032,0.87864172,110210.0,110200.0,0.00211776]
[1756455004234,0.88061172,110210.0,110200.0,0.00211776]
[1756455004437,0.88373172,110210.0,110200.0,0.00211776]
[1756455004616,0.94717495,110210.0,110200.0,4.776e-05]
[1756455005526,0.94717495,110210.0,110200.0,0.00104776]
[1756455006815,0.94717495,110210.0,110200.0,0.00404776]
[1756455006816,0.94082876,110210.0,110200.0,0.00404776]
[1756455007028,0.54904107,110210.0,110200.0,0.00404776]
[1756455007248,0.94717472,110210.0,110200.0,0.00404776]
[1756455007672,1.28717472,110210.0,110200.0,0.00404776]
[1756455008299,0.88904107,110210.0,110200.0,0.00404776]
[1756455008528,1.28717472,110210.0,110200.0,0.00404776]